bitfinex/quotes_BTCUSD_20250831
["timestamp","ask_amount","ask_price","bid_price","bid_amount"]
[1756603825976,0.49933595,109520.0,109510.0,0.32377054]
[1756603826735,0.49933595,109520.0,109510.0,0.16849054]
[1756603827116,0.83933595,109520.0,109510.0,0.32377054]
[1756603827895,0.83933595,109520.0,109510.0,0.23079053]
[1756603828095,0.83933595,109520.0,109510.0,0.22874053]
[1756603829070,0.52361504,109520.0,109510.0,0.22874053]
[1756603829295,0.83933595,109520.0,109510.0,0.22565053]
[1756603829814,0.83933595,109520.0,109510.0,0.22874053]
[1756603830018,0.52361504,109520.0,109510.0,0.23079053]
[1756603830229,0.52361504,109520.0,109510.0,0.50640226]
[1756603830479,0.001,109520.0,109510.0,0.82212317]
[1756603830809,0.001,109520.0,109510.0,0.84957717]
[1756603831747,0.52259837,109530.0,109520.0,0.18261504]
[1756603831947,0.83831928,109530.0,109520.0,0.27559505]
[1756603832107,0.83831928,109530.0,109520.0,0.27868505]
[1756603832308,0.83831928,109530.0,109520.0,0.28073505]
[1756603833542,0.52259837,109530.0,109520.0,0.28073505]
[1756603834389,0.52259837,109530.0,109520.0,0.09812001]
[1756603836273,0.52259837,109530.0,109520.0,0.35097505]
[1756603836651,0.47231534,109540.0,109520.0,0.37191387]
[1756603836652,0.19171078,109540.0,109520.0,0.37191387]
[1756603836865,0.18259837,109530.0,109520.0,0.27584386]
[1756603837094,0.18259837,109530.0,109520.0,0.45853486]
[1756603837334,0.18259837,109530.0,109520.0,0.43108386]
[1756603837553,0.18259837,109530.0,109520.0,0.46162486]
[1756603838052,0.18259837,109530.0,109520.0,0.37198983]
[1756603838968,0.18259837,109530.0,109520.0,0.55460487]
[1756603840810,0.53171078,109540.0,109520.0,0.55460487]
[1756603841023,0.42209021,109550.0,109530.0,0.09607001]
[1756603841242,0.44206779,109550.0,109540.0,0.15729]
[1756603841423,0.44206779,109550.0,109540.0,0.16038]
[1756603842059,0.44206779,109550.0,109540.0,0.30938]
[1756603842267,0.44206779,109550.0,109540.0,0.15938]
[1756603842707,0.44506779,109550.0,109540.0,0.15938]
[1756603843065,0.78506779,109550.0,109540.0,0.15838]
[1756603843305,0.76509021,109550.0,109540.0,0.15838]
[1756603843513,0.78506395,109550.0,109540.0,0.15838]
[1756603843691,0.50445939,109550.0,109540.0,0.15838]
[1756603843864,0.50445939,109550.0,109540.0,0.43394171]
[1756603844069,0.48548565,109550.0,109540.0,0.25136001]
[1756603844308,0.48548565,109550.0,109540.0,0.27880901]
[1756603844550,0.76609021,109550.0,109540.0,0.27880901]
[1756603844934,0.76209021,109550.0,109540.0,0.27880901]
[1756603845343,0.76409021,109550.0,109540.0,0.27880901]
[1756603845691,0.76209021,109550.0,109540.0,0.27880901]
[1756603845880,0.76209021,109550.0,109540.0,0.35004901]
[1756603846125,0.75296196,109550.0,109540.0,0.53263071]
[1756603847582,0.75296196,109550.0,109540.0,0.53363071]
[1756603848681,0.4723574,109550.0,109540.0,0.53363071]
[1756603848885,0.75296196,109550.0,109540.0,0.53363071]
[1756603849231,0.75296196,109550.0,109540.0,0.35104901]
[1756603849818,0.4723574,109550.0,109540.0,0.35104901]
[1756603850100,0.75296196,109550.0,109540.0,0.35104901]
[1756603850915,0.4723574,109550.0,109540.0,0.53363071]
[1756603851118,0.75296196,109550.0,109540.0,0.53363071]
[1756603851461,0.75296196,109550.0,109540.0,0.35104901]
[1756603852789,0.4723574,109550.0,109540.0,0.53363071]
[1756603853192,0.1323574,109550.0,109540.0,0.53363071]
[1756603853603,0.1323574,109550.0,109540.0,0.38039071]
[1756603853802,0.1323574,109550.0,109540.0,0.53559071]
[1756603854016,0.1323574,109550.0,109540.0,0.19780901]
[1756603854242,0.41296196,109550.0,109540.0,0.19780901]
[1756603854463,0.41296196,109550.0,109540.0,0.34786901]
[1756603854894,0.41296196,109550.0,109540.0,0.35080901]
[1756603855334,0.44796117,109550.0,109540.0,0.35080901]
[1756603855571,0.44796117,109550.0,109540.0,0.34786901]
[1756603856478,0.44796117,109550.0,109540.0,0.19560901]
[1756603856707,0.44796117,109550.0,109540.0,0.35080901]
[1756603857390,0.41289883,109550.0,109540.0,0.35080901]
[1756603857617,0.41289883,109550.0,109540.0,0.35286901]
[1756603857812,0.41289883,109550.0,109540.0,0.34786901]
[1756603858055,0.41289883,109550.0,109540.0,0.35080901]
[1756603858287,0.41289883,109550.0,109540.0,0.35286901]
[1756603860260,0.41289883,109550.0,109540.0,0.35080901]
[1756603860492,0.41289883,109550.0,109540.0,0.34786901]
[1756603860699,0.41289883,109550.0,109540.0,0.19266901]
[1756603860977,0.41289883,109550.0,109540.0,0.34786901]
[1756603861833,0.41289883,109550.0,109540.0,0.33686652]
[1756603862036,0.41289883,109550.0,109540.0,0.32586403]
[1756603862242,0.41289883,109550.0,109540.0,0.31586961]
[1756603862566,0.41289883,109550.0,109540.0,0.31880961]
[1756603863741,0.41289883,109550.0,109540.0,0.32086961]
[1756603864668,0.1323574,109550.0,109540.0,0.32086961]
[1756603864867,0.41289883,109550.0,109540.0,0.32086961]
[1756603868612,0.41289883,109550.0,109540.0,0.50345131]
[1756603869918,0.1323574,109550.0,109540.0,0.50345131]
[1756603872409,0.1323574,109550.0,109540.0,0.55263515]
[1756603873290,0.1323574,109550.0,109540.0,0.50345131]
[1756603873550,0.18256503,109550.0,109540.0,0.55263515]
[1756603873789,0.83573636,109560.0,109550.0,0.18256503]
[1756603873965,0.83859396,109560.0,109550.0,0.18256503]
[1756603874115,0.55805253,109560.0,109550.0,0.18756503]
[1756603874727,0.02637662,109560.0,109550.0,0.28054504]
[1756603874917,0.20892499,109560.0,109550.0,0.28067557]
[1756603875112,0.02451902,109560.0,109550.0,0.28067557]
[1756603875322,0.20706739,109560.0,109550.0,0.28067557]
[1756603875520,0.20706739,109560.0,109550.0,0.30812157]
[1756603876603,0.02451902,109560.0,109550.0,0.30812157]
[1756603876806,0.20706739,109560.0,109550.0,0.30812157]
[1756603877345,0.20706739,109560.0,109550.0,0.46324157]
[1756603878282,0.0014,109560.0,109550.0,0.46324157]
[1756603878481,0.0014,109560.0,109550.0,0.53336423]
[1756603878702,0.0014,109560.0,109550.0,0.81390566]
[1756603879348,0.0014,109560.0,109550.0,0.8487908]
[1756603880086,0.0004,109560.0,109550.0,0.8487908]
[1756603881313,0.0004,109560.0,109550.0,0.81372556]
[1756603881519,0.0004,109560.0,109550.0,0.81572556]
[1756603882611,0.0004,109560.0,109550.0,0.81672556]
[1756603883208,0.0004,109560.0,109550.0,0.8572309]
[1756603883449,0.0004,109560.0,109550.0,0.80804706]
[1756603885362,0.0004,109560.0,109550.0,0.85711795]
[1756603885562,0.0004,109560.0,109550.0,0.85711879]
[1756603886915,0.0004,109560.0,109550.0,0.70199879]
[1756603887116,0.0004,109560.0,109550.0,0.85707879]
[1756603887654,0.0004,109560.0,109550.0,0.57671746]
[1756603887856,0.0004,109560.0,109550.0,0.70199879]
[1756603888042,0.0004,109560.0,109550.0,0.85707879]
[1756603889158,0.0004,109560.0,109550.0,0.80800706]
[1756603889356,0.0004,109560.0,109550.0,0.85704397]
[1756603889571,0.0004,109560.0,109550.0,0.80800706]
[1756603890526,0.0004,109560.0,109550.0,0.65292706]
[1756603890726,0.0004,109560.0,109550.0,0.80800706]
[1756603891125,0.0004,109560.0,109550.0,0.52764573]
[1756603891351,0.0004,109560.0,109550.0,0.80800706]
[1756603893510,0.0004,109560.0,109550.0,1.14800706]
[1756603893715,0.0004,109560.0,109550.0,0.9330903]
[1756603893952,0.0004,109560.0,109550.0,1.21345163]
[1756603894355,0.0004,109560.0,109550.0,1.21341163]
[1756603895831,0.0004,109560.0,109550.0,0.7780103]
[1756603896002,0.0004,109560.0,109550.0,1.21341163]
[1756603897647,0.0004,109560.0,109550.0,1.05837163]
[1756603897849,0.0004,109560.0,109550.0,1.21341163]
[1756603898389,0.0004,109560.0,109550.0,1.43281163]
[1756603899096,0.0004,109560.0,109550.0,1.27777163]
[1756603899300,0.0004,109560.0,109550.0,1.43281163]
[1756603900008,0.0004,109560.0,109550.0,1.09281163]
[1756603900211,0.0004,109560.0,109550.0,0.93777163]
[1756603900419,0.0004,109560.0,109550.0,1.02736706]
[1756603901851,0.0004,109560.0,109550.0,0.74700573]
[1756603901986,0.0004,109560.0,109550.0,1.02736706]
[1756603902333,0.0004,109560.0,109550.0,1.09281163]
[1756603903370,0.0004,109560.0,109550.0,1.12782828]
[1756603906146,0.0004,109560.0,109550.0,0.8124503]
[1756603906620,0.0004,109560.0,109550.0,1.12782828]
[1756603910104,0.0004,109560.0,109550.0,0.97278828]
[1756603910306,2.85111257,109580.0,109570.0,0.18253171]
[1756603910505,2.85396929,109580.0,109570.0,0.50099172]
[1756603910903,2.85396929,109580.0,109570.0,0.52843072]
[1756603911371,2.67145337,109580.0,109570.0,0.52843072]
[1756603911579,2.35607539,109580.0,109570.0,0.52843072]
[1756603911887,2.67245337,109580.0,109570.0,0.52843072]
[1756603912035,2.66959665,109580.0,109570.0,0.52843072]
[1756603912439,2.8521117,109580.0,109570.0,0.52843072]
[1756603913235,2.85496838,109580.0,109570.0,0.52843072]
[1756603913528,2.5395904,109580.0,109570.0,0.52843072]
[1756603913730,2.35707535,109580.0,109570.0,0.52843072]
[1756603913992,2.85496838,109580.0,109570.0,0.52843072]
[1756603914316,2.5395904,109580.0,109570.0,0.52843072]
[1756603914898,2.35707535,109580.0,109570.0,0.52843072]
[1756603915594,2.5395904,109580.0,109570.0,0.52843072]
[1756603916130,2.35707535,109580.0,109570.0,0.52843072]
[1756603916488,2.35421867,109580.0,109570.0,0.52843072]
[1756603916811,2.35707535,109580.0,109570.0,0.52843072]
[1756603917447,2.35707535,109580.0,109570.0,0.53153072]
[1756603917864,2.35707535,109580.0,109570.0,0.8469087]
[1756603917995,2.35421867,109580.0,109570.0,0.8469087]
[1756603918437,2.35421867,109580.0,109570.0,0.8490587]
[1756603918624,2.35421867,109580.0,109570.0,0.8469087]
[1756603919649,2.53673372,109580.0,109570.0,0.52843072]
[1756603919878,2.53673372,109580.0,109570.0,0.8490587]
[1756603920118,2.53673372,109580.0,109570.0,0.53153072]
[1756603920375,2.53673372,109580.0,109570.0,0.57759814]
[1756603920835,2.35421867,109580.0,109570.0,0.58069814]
[1756603921078,2.35421867,109580.0,109570.0,0.58284814]
[1756603921790,2.35421867,109580.0,109570.0,0.89607612]
[1756603922313,2.53673372,109580.0,109570.0,0.57799814]
[1756603922803,2.53673372,109580.0,109570.0,0.58109814]
[1756603923235,2.35421867,109580.0,109570.0,0.58324814]
[1756603923644,2.35421867,109580.0,109570.0,0.89862612]
[1756603925350,2.35421867,109580.0,109570.0,0.91956494]
[1756603926195,2.35421867,109580.0,109570.0,0.60418696]
[1756603926349,2.35421867,109580.0,109570.0,0.91956494]
[1756603926781,2.35421867,109580.0,109570.0,0.60494696]
[1756603926979,2.35421867,109580.0,109570.0,0.60279696]
[1756603927414,2.35421867,109580.0,109570.0,0.92032494]
[1756603928411,2.35421867,109580.0,109570.0,0.91817494]
[1756603928611,2.35421867,109580.0,109570.0,0.92032494]
[1756603929256,2.35421867,109580.0,109570.0,0.87115752]
[1756603930602,2.35421867,109580.0,109570.0,0.55577954]
[1756603930760,2.35421867,109580.0,109570.0,0.87115752]
[1756603931355,2.35421867,109580.0,109570.0,1.02115752]
[1756603931654,2.35421867,109580.0,109570.0,1.08660209]
[1756603931870,2.35421867,109580.0,109570.0,1.6486498]
[1756603931871,1.90843899,109580.0,109570.0,1.6486498]
[1756603932074,1.90843899,109580.0,109570.0,1.71429622]
[1756603932284,1.90843899,109580.0,109570.0,1.55785622]
[1756603932486,1.90843899,109580.0,109570.0,1.71461622]
[1756603933419,1.90843899,109580.0,109570.0,1.2983192]
[1756603933702,1.90843899,109580.0,109570.0,1.2982792]
[1756603934056,1.90743899,109580.0,109570.0,1.3022792]
[1756603934264,1.90743899,109580.0,109570.0,1.3052392]
[1756603934468,1.90743899,109580.0,109570.0,1.3022392]
[1756603935023,1.90743899,109580.0,109570.0,1.3082392]
[1756603936165,1.90743899,109580.0,109570.0,1.1515592]
[1756603936371,1.90743899,109580.0,109570.0,1.2360849]
[1756603938109,1.90743899,109580.0,109570.0,1.5035849]
[1756603938313,1.90743899,109580.0,109570.0,1.3469449]
[1756603938485,1.90743899,109580.0,109570.0,1.5035049]
[1756603941989,1.90743899,109580.0,109570.0,1.58511479]
[1756603943348,1.90743899,109580.0,109570.0,1.5035049]
[1756603944325,1.43889648,109580.0,109570.0,1.5535049]
[1756603944542,1.36526813,109580.0,109570.0,1.5535049]
[1756603946124,1.36526813,109580.0,109570.0,1.3969449]
[1756603946329,1.36526813,109580.0,109570.0,1.5557049]
[1756603946533,1.36526813,109580.0,109570.0,1.3969449]
[1756603946759,1.36526813,109580.0,109570.0,1.5556649]
[1756603947721,1.36526813,109580.0,109570.0,1.3969449]
[1756603947934,1.36526813,109580.0,109570.0,1.5563049]
[1756603948088,1.36526813,109580.0,109570.0,1.3969449]
[1756603948284,1.36526813,109580.0,109570.0,1.5563049]
[1756603953541,1.36526813,109580.0,109570.0,1.3969449]
[1756603953741,1.36526813,109580.0,109570.0,1.5563449]
[1756603954368,1.36526813,109580.0,109570.0,1.57174574]
[1756603954514,1.36526813,109580.0,109570.0,1.5563449]
[1756603955283,1.36526813,109580.0,109570.0,1.3969449]
[1756603955485,1.36726813,109580.0,109570.0,1.5563049]
[1756603955708,1.36726813,109580.0,109570.0,1.3469449]
[1756603955922,1.36726813,109580.0,109570.0,1.5062649]
[1756603956153,1.36726813,109580.0,109570.0,1.27075608]
[1756603956382,1.37048813,109580.0,109570.0,1.49544876]
[1756603956611,1.37048813,109580.0,109570.0,1.51638758]
[1756603957212,1.37048813,109580.0,109570.0,1.35710758]
[1756603957418,1.37048813,109580.0,109570.0,1.15544876]
[1756603957623,1.37048813,109580.0,109570.0,1.17638758]
[1756603957839,1.37048813,109580.0,109570.0,1.1109749]
[1756603958463,1.36526813,109580.0,109570.0,0.89628222]
[1756603958673,1.36526813,109580.0,109570.0,1.17834758]
[1756603958875,1.36526813,109580.0,109570.0,1.57133758]
[1756603959076,1.36526813,109580.0,109570.0,1.22581954]
[1756603959282,1.36526813,109580.0,109570.0,1.5059249]
[1756603959902,0.94863311,109580.0,109570.0,1.70299511]
[1756603960029,0.94863311,109580.0,109570.0,1.62138522]
[1756603961215,0.95063311,109580.0,109570.0,1.62138522]
[1756603961805,0.94863311,109580.0,109570.0,1.62138522]
[1756603964845,0.95063311,109580.0,109570.0,1.46210522]
[1756603965061,0.95063311,109580.0,109570.0,1.33980986]
[1756603965268,0.95063311,109580.0,109570.0,1.61795522]
[1756603965496,0.95063311,109580.0,109570.0,1.61991522]
[1756603965703,0.94863311,109580.0,109570.0,1.62290522]
[1756603968208,0.94463311,109580.0,109570.0,1.71917522]
[1756603968358,0.94463311,109580.0,109570.0,1.62290522]
[1756603969623,0.94463311,109580.0,109570.0,1.34279986]
[1756603969902,0.94463311,109580.0,109570.0,1.63905479]
[1756603970644,0.39249268,109580.0,109570.0,1.6546208]
[1756603970844,0.37521065,109580.0,109570.0,1.62301091]
[1756603971044,0.37521065,109580.0,109570.0,1.84233091]
[1756603971045,0.1712965,109580.0,109570.0,1.84233091]
[1756603975224,0.1712965,109580.0,109570.0,1.84198597]
[1756603975423,0.1712965,109580.0,109570.0,1.68118597]
[1756603975631,0.1712965,109580.0,109570.0,1.84162597]
[1756603976324,0.1712965,109580.0,109570.0,1.68118597]
[1756603976503,0.1732665,109580.0,109570.0,1.78863597]
[1756603976891,0.1732665,109580.0,109570.0,1.40123061]
[1756603977094,0.1732665,109580.0,109570.0,1.83655597]
[1756603977514,0.1732665,109580.0,109570.0,1.55645061]
[1756603977685,0.1732665,109580.0,109570.0,1.83655597]
[1756603979773,0.1732665,109580.0,109570.0,1.67623597]
[1756603980004,0.1732665,109580.0,109570.0,1.83647597]
[1756603980202,0.1732665,109580.0,109570.0,1.34613061]
[1756603980442,0.1764565,109580.0,109570.0,1.45625061]
[1756603980675,0.1764565,109580.0,109570.0,1.30985114]
[1756603981124,0.1764565,109580.0,109570.0,1.73635597]
[1756603981351,0.1764565,109580.0,109570.0,1.45625061]
[1756603981547,0.1764565,109580.0,109570.0,1.73635597]
[1756603981744,0.1732665,109580.0,109570.0,1.73635597]
[1756603981950,0.1732665,109580.0,109570.0,1.67078996]
[1756603982314,0.1732665,109580.0,109570.0,1.73635961]
[1756603982529,0.1732665,109580.0,109570.0,1.73836961]
[1756603982681,0.1732665,109580.0,109570.0,1.73635961]
[1756603983918,0.1732665,109580.0,109570.0,1.73623961]
[1756603984302,0.1764565,109580.0,109570.0,1.73623961]
[1756603984653,0.1732665,109580.0,109570.0,1.73619961]
[1756603985062,0.1732665,109580.0,109570.0,1.67062996]
[1756603985262,0.1732665,109580.0,109570.0,1.7361792]
[1756603985466,0.1732665,109580.0,109570.0,1.4686792]
[1756603986636,0.1732665,109580.0,109570.0,1.3087192]
[1756603986850,0.1732665,109580.0,109570.0,1.4686792]
[1756603987066,0.1764565,109580.0,109570.0,1.4686792]
[1756603988370,0.1732665,109580.0,109570.0,1.40312996]
[1756603988612,0.1712965,109580.0,109570.0,1.40827996]
[1756603988827,0.1732665,109580.0,109570.0,1.40827996]
[1756603989042,0.1732665,109580.0,109570.0,0.66769709]
[1756603989043,0.1764565,109580.0,109570.0,0.66769709]
[1756603989217,0.1764565,109580.0,109570.0,0.76244578]
[1756603989646,0.1764565,109580.0,109570.0,1.06348996]
[1756603990351,0.1764565,109580.0,109570.0,0.6190646]
[1756603990552,0.1764565,109580.0,109570.0,0.7813446]
[1756603990936,0.1764565,109580.0,109570.0,0.83052047]
[1756603991111,0.35897155,109580.0,109570.0,0.83068047]
[1756603991315,0.1764565,109580.0,109570.0,0.64930165]
[1756603991517,0.35897155,109580.0,109570.0,0.80970165]
[1756603991683,0.35897155,109580.0,109570.0,0.64330165]
[1756603991888,0.35897155,109580.0,109570.0,0.80366165]
[1756603992099,0.1764565,109580.0,109570.0,0.80662165]
[1756603992433,0.35897155,109580.0,109570.0,0.80662165]
[1756603992636,0.1764565,109580.0,109570.0,0.80662165]
[1756603992876,0.1764565,109580.0,109570.0,0.80658165]
[1756603993389,0.1764565,109580.0,109570.0,1.11277583]
[1756603993390,0.1732665,109580.0,109570.0,1.11277583]
[1756603994010,0.1712965,109580.0,109570.0,1.06359996]
[1756603994444,0.17103122,109580.0,109570.0,1.06359996]
[1756603996283,0.17300122,109580.0,109570.0,1.06359996]
[1756603996761,0.17103122,109580.0,109570.0,1.06359996]
[1756603997785,0.17300122,109580.0,109570.0,1.06359996]
[1756603998448,0.17103122,109580.0,109570.0,1.06359996]
[1756603999678,0.17103122,109580.0,109570.0,1.40359996]
[1756603999876,0.17103122,109580.0,109570.0,1.46917127]
[1756604001249,0.00098409,109590.0,109580.0,0.82355923]
[1756604001441,0.00098409,109590.0,109580.0,1.07959924]
[1756604001681,0.00098409,109590.0,109580.0,1.08164924]
[1756604002814,0.00098409,109590.0,109580.0,1.08464924]
[1756604003032,0.00098409,109590.0,109580.0,1.08764924]
[1756604003718,0.00098409,109590.0,109580.0,1.09130624]
[1756604003910,0.00098409,109590.0,109580.0,1.09114624]
[1756604004323,0.00098409,109590.0,109580.0,1.09110624]
[1756604004495,0.00098409,109590.0,109580.0,1.13280529]
[1756604004698,0.00098409,109590.0,109580.0,1.13276529]
[1756604005475,0.00098409,109590.0,109580.0,0.69301993]
[1756604005688,0.00098409,109590.0,109580.0,1.13276529]
[1756604006920,0.00098409,109590.0,109580.0,0.69301993]
[1756604007150,0.00098409,109590.0,109580.0,1.13272529]
[1756604010009,0.00098409,109590.0,109580.0,0.85261993]
[1756604010231,0.00098409,109590.0,109580.0,1.13272529]
[1756604011160,0.0004,109600.0,109590.0,0.25343722]
[1756604011387,0.0004,109600.0,109590.0,0.73636259]
[1756604011609,0.0004,109600.0,109590.0,0.74159259]
[1756604011831,0.0004,109600.0,109590.0,0.58540859]
[1756604012291,0.0004,109600.0,109590.0,0.74520859]
[1756604012463,0.0004,109600.0,109590.0,0.74920859]
[1756604012464,0.00087717,109600.0,109590.0,0.74920859]
[1756604012668,0.00087717,109600.0,109590.0,0.74928859]
[1756604013221,0.0009991,109610.0,109600.0,0.20342057]
[1756604013374,0.0009991,109610.0,109600.0,1.15539435]
[1756604013573,0.16727631,109660.0,109640.0,0.18240735]
[1756604013776,0.46527176,109660.0,109650.0,0.15984]
[1756604014024,0.80527176,109660.0,109650.0,0.15984]
[1756604014876,0.80527176,109660.0,109650.0,0.15997053]
[1756604015300,0.80027176,109660.0,109650.0,0.15997053]
[1756604015930,5.53863409,109660.0,109650.0,0.00013053]
[1756604016184,5.47379617,109660.0,109650.0,0.00013053]
[1756604016435,5.50122517,109660.0,109650.0,0.00013053]
[1756604017440,5.50122517,109660.0,109650.0,1e-08]
[1756604019636,5.49837056,109660.0,109650.0,1e-08]
[1756604019839,5.50122883,109660.0,109650.0,1e-08]
[1756604020233,5.50122833,109660.0,109650.0,1e-08]
[1756604020693,5.50122944,109660.0,109650.0,1e-08]
[1756604020898,5.47380044,109660.0,109650.0,1e-08]
[1756604021706,5.19369508,109660.0,109650.0,1e-08]
[1756604021934,5.47380044,109660.0,109650.0,1e-08]
[1756604024542,5.58656608,109660.0,109650.0,1e-08]
[1756604028278,5.74628608,109660.0,109650.0,1e-08]
[1756604029251,5.74631327,109660.0,109650.0,1e-08]
[1756604029451,5.76058722,109660.0,109650.0,1e-08]
[1756604029941,5.74631327,109660.0,109650.0,1e-08]
[1756604030344,5.74633223,109660.0,109650.0,1e-08]
[1756604031155,5.74633311,109660.0,109650.0,1e-08]
[1756604031979,5.76603076,109660.0,109650.0,1e-08]
[1756604032451,5.79346076,109660.0,109650.0,1e-08]
[1756604032658,5.88175708,109660.0,109650.0,1e-08]
[1756604033684,5.79346076,109660.0,109650.0,1e-08]
[1756604036848,5.84346076,109660.0,109650.0,1e-08]
[1756604037379,5.84346093,109660.0,109650.0,1e-08]
[1756604038552,6.23633193,109660.0,109650.0,1e-08]
[1756604038929,6.30727075,109660.0,109650.0,1e-08]
[1756604039132,0.91530281,109630.0,109620.0,0.1422743]
[1756604039335,5.65783383,109630.0,109620.0,0.0721143]
[1756604039487,5.75081384,109630.0,109620.0,0.0721143]
[1756604039691,5.59173384,109630.0,109620.0,0.0721143]
[1756604040946,0.5224651,109610.0,109600.0,0.1454543]
[1756604041148,5.47527837,109610.0,109600.0,0.0772743]
[1756604041769,5.47527837,109610.0,109600.0,0.3772743]
[1756604042318,5.47527837,109610.0,109600.0,0.37740485]
[1756604042785,5.47527837,109610.0,109600.0,0.30829055]
[1756604042993,0.52532137,109610.0,109600.0,0.30829055]
[1756604043373,0.91819237,109610.0,109600.0,0.30829055]
[1756604044033,0.91819237,109610.0,109600.0,0.31029055]
[1756604044436,0.91819237,109610.0,109600.0,0.30513055]
[1756604044586,0.91819237,109610.0,109600.0,0.30831055]
[1756604044804,0.91819237,109610.0,109600.0,0.31029055]
[1756604045837,0.18248175,109600.0,109590.0,0.00318]
[1756604046054,0.5224984,109590.0,109580.0,0.07334]
[1756604046251,0.5224984,109590.0,109580.0,0.00365717]
[1756604046252,5.49004709,109590.0,109580.0,0.00365717]
[1756604047262,5.49004709,109590.0,109580.0,0.00247717]
[1756604047488,5.5830271,109590.0,109580.0,0.00247717]
[1756604047688,5.60009526,109590.0,109580.0,0.00247717]
[1756604047896,5.60009526,109590.0,109580.0,0.00447717]
[1756604048091,5.60649585,109590.0,109580.0,0.00447717]
[1756604048252,5.60009526,109590.0,109580.0,0.00047717]
[1756604048704,5.60009526,109590.0,109580.0,0.00147717]
[1756604049147,5.64526945,109590.0,109580.0,0.00147717]
[1756604050250,5.64241318,109590.0,109580.0,0.00047717]
[1756604050434,5.64524885,109590.0,109580.0,0.00047717]
[1756604050734,5.80436885,109590.0,109580.0,0.00047717]
[1756604051267,5.78732228,109590.0,109580.0,0.00047717]
[1756604051665,5.80435543,109590.0,109580.0,0.00047717]
[1756604051795,5.41148443,109590.0,109580.0,0.00047717]
[1756604052197,5.80435543,109590.0,109580.0,0.00047717]
[1756604053353,5.75898124,109590.0,109580.0,0.00365717]
[1756604055783,5.75898124,109590.0,109580.0,0.00047717]
[1756604057231,5.75874124,109590.0,109580.0,0.00563717]
[1756604057349,5.75872481,109590.0,109580.0,0.00563717]
[1756604058345,5.75872481,109590.0,109580.0,0.00365717]
[1756604059329,5.84702113,109590.0,109580.0,0.00047717]
[1756604059959,5.84702113,109590.0,109580.0,0.00370717]
[1756604060276,5.75872481,109590.0,109580.0,0.00580717]
[1756604060480,5.75868481,109590.0,109580.0,0.00580717]
[1756604061006,5.75869028,109590.0,109580.0,0.00580717]
[1756604061719,5.58351883,109590.0,109580.0,0.00580717]
[1756604062127,5.74207883,109590.0,109580.0,0.00580717]
[1756604063533,5.74207883,109590.0,109580.0,0.00370717]
[1756604063978,5.74209092,109590.0,109580.0,0.00370717]
[1756604064183,5.74209092,109590.0,109580.0,0.00047717]
[1756604064384,5.76807893,109590.0,109580.0,0.00047717]
[1756604064586,5.76809032,109590.0,109580.0,0.00047717]
[1756604065104,5.76809032,109590.0,109580.0,1e-08]
[1756604065331,5.74210231,109590.0,109580.0,1e-08]
[1756604066316,5.34915131,109590.0,109580.0,0.00533001]
[1756604066525,5.58354231,109590.0,109580.0,0.00533001]
[1756604066688,5.58454231,109590.0,109580.0,0.00533001]
[1756604067390,5.58354231,109590.0,109580.0,0.00533001]
[1756604067594,5.58454231,109590.0,109580.0,0.00533001]
[1756604067873,5.58554231,109590.0,109580.0,0.00533001]
[1756604068031,5.58354231,109590.0,109580.0,0.00533001]
[1756604069504,5.0976913,109590.0,109580.0,0.00533001]
[1756604069710,5.4905623,109590.0,109580.0,0.00533001]
[1756604069984,4.78060751,109590.0,109580.0,0.15533001]
[1756604070312,5.51347851,109590.0,109580.0,0.00533001]
[1756604070466,0.95639251,109590.0,109580.0,0.00533001]
[1756604071268,0.95000242,109590.0,109580.0,0.00533001]
[1756604071471,1.01408734,109590.0,109580.0,0.00733001]
[1756604071673,1.02335128,109590.0,109580.0,0.00733001]
[1756604071873,0.95645422,109590.0,109580.0,0.01033001]
[1756604072081,0.95645616,109590.0,109580.0,0.01033001]
[1756604072827,5.60652217,109590.0,109580.0,0.00500001]
[1756604072971,5.76492217,109590.0,109580.0,0.00300001]
[1756604073184,5.85321849,109590.0,109580.0,0.00400001]
[1756604073403,5.85321849,109590.0,109580.0,0.00100001]
[1756604073700,5.76492217,109590.0,109580.0,0.00200001]
[1756604074105,5.76492217,109590.0,109580.0,0.00523001]
[1756604074446,5.76492217,109590.0,109580.0,0.00323001]
[1756604074650,5.76492217,109590.0,109580.0,1e-08]
[1756604074827,5.21365117,109590.0,109580.0,0.00533001]
[1756604075025,5.60652217,109590.0,109580.0,0.00533001]
[1756604075227,5.21365117,109590.0,109580.0,0.00533001]
[1756604075432,5.51354216,109590.0,109580.0,0.00533001]
[1756604075842,5.51354216,109590.0,109580.0,0.00323001]
[1756604076043,5.51354216,109590.0,109580.0,0.00533001]
[1756604076278,5.51354216,109590.0,109580.0,0.00323001]
[1756604076663,5.51354216,109590.0,109580.0,1e-08]
[1756604076862,5.51354216,109590.0,109580.0,0.00323001]
[1756604077135,5.51354216,109590.0,109580.0,0.00533001]
[1756604077959,5.69481849,109590.0,109580.0,1e-08]
[1756604078135,5.87326537,109590.0,109580.0,1e-08]
[1756604078702,5.87330435,109590.0,109580.0,1e-08]
[1756604079428,5.78500803,109590.0,109580.0,1e-08]
[1756604079631,5.78500803,109590.0,109580.0,0.00210001]
[1756604079877,5.78500803,109590.0,109580.0,0.00533001]
[1756604079878,5.78700803,109590.0,109580.0,0.00533001]
[1756604080072,5.78700803,109590.0,109580.0,1e-08]
[1756604081383,5.7870061,109590.0,109580.0,1e-08]
[1756604082048,5.78700661,109590.0,109580.0,1e-08]
[1756604082248,5.78701843,109590.0,109580.0,1e-08]
[1756604084028,5.87531475,109590.0,109580.0,1e-08]
[1756604085056,5.78701843,109590.0,109580.0,1e-08]
[1756604086442,5.62829843,109590.0,109580.0,0.00533001]
[1756604086650,5.12272054,109590.0,109580.0,0.00533001]
[1756604086854,4.78272054,109590.0,109580.0,0.00533001]
[1756604087062,5.17559154,109590.0,109580.0,0.00533001]
[1756604087277,5.51559154,109590.0,109580.0,0.00533001]
[1756604087498,5.51559154,109590.0,109580.0,0.16385001]
[1756604087806,0.21721374,109590.0,109580.0,0.23405001]
[1756604088026,0.95008474,109590.0,109580.0,0.23405001]
[1756604088913,0.95008474,109590.0,109580.0,0.07553001]
[1756604089109,0.55921374,109590.0,109580.0,0.23401001]
[1756604089244,0.95108401,109590.0,109580.0,0.23401001]
[1756604089424,0.95008401,109590.0,109580.0,0.23417001]
[1756604089627,0.95008401,109590.0,109580.0,0.23617001]
[1756604089934,0.95008401,109590.0,109580.0,0.23717001]
[1756604090523,0.9329615,109590.0,109580.0,0.23717001]
[1756604090727,0.9329615,109590.0,109580.0,0.41968506]
[1756604090924,0.9329615,109590.0,109580.0,0.56968506]
[1756604091125,0.9329615,109590.0,109580.0,0.51266507]
[1756604091905,0.9329615,109590.0,109580.0,0.33015002]
[1756604092242,0.9329615,109590.0,109580.0,0.32915002]
[1756604092441,0.9329615,109590.0,109580.0,0.50966507]
[1756604092709,0.93296144,109590.0,109580.0,0.50966507]
[1756604092881,0.93296144,109590.0,109580.0,0.51466507]
[1756604093514,0.93010482,109590.0,109580.0,0.51466507]
[1756604093721,0.93010482,109590.0,109580.0,0.33215002]